[Event "*** Titled Tuesday 3|2 Blitz"]
[Site "Chess.com"]
[Date "2016.07.05"]
[Round "6"]
[White "Smirnov_Pavel"]
[Black "FairChess_on_YouTube"]
[Result "1/2-1/2"]
[WhiteElo "2554"]
[BlackElo "2718"]
[TimeControl "180+2"]
[EndTime "12:20:50 PDT"]
[Termination "Game drawn by repetition"]

1. d4 {[%clk 0:03:01.9]} 1... d5 {[%clk 0:03:01]} 2. c4 {[%clk 0:03:02.2]} 2...
c6 {[%clk 0:03:02.4]} 3. Nf3 {[%clk 0:03:03.2]} 3... Nf6 {[%clk 0:03:03.6]} 4.
Nc3 {[%clk 0:03:02.2]} 4... a6 {[%clk 0:03:05]} 5. e3 {[%clk 0:03:01.7]} 5...
Bf5 {[%clk 0:03:05.1]} 6. Ne5 {[%clk 0:03:00.2]} 6... Nbd7 {[%clk 0:02:55.1]} 7.
Qb3 {[%clk 0:02:54.6]} 7... Qc7 {[%clk 0:02:38.6]} 8. cxd5 {[%clk 0:02:54.6]}
8... Nxe5 {[%clk 0:02:38.6]} 9. dxe5 {[%clk 0:02:55.1]} 9... Nxd5 {[%clk
0:02:39.9]} 10. e4 {[%clk 0:02:49.6]} 10... Nxc3 {[%clk 0:02:36.9]} 11. exf5
{[%clk 0:02:49.5]} 11... Nd5 {[%clk 0:02:35.7]} 12. f4 {[%clk 0:02:31.6]} 12...
O-O-O {[%clk 0:02:32.6]} 13. Bd2 {[%clk 0:02:29.6]} 13... g5 {[%clk 0:02:22.5]}
14. fxg6 {[%clk 0:02:18.6]} 14... hxg6 {[%clk 0:02:24.4]} 15. g3 {[%clk
0:02:12.7]} 15... g5 {[%clk 0:02:21.4]} 16. O-O-O {[%clk 0:01:54.5]} 16... gxf4
{[%clk 0:02:22]} 17. gxf4 {[%clk 0:01:51.5]} 17... Bh6 {[%clk 0:02:15.6]} 18.
Bh3+ {[%clk 0:01:50.2]} 18... Kb8 {[%clk 0:02:04.4]} 19. Rhf1 {[%clk 0:01:48.9]}
19... f6 {[%clk 0:01:51.9]} 20. exf6 {[%clk 0:01:13.5]} 20... Nxf6 {[%clk
0:01:51.6]} 21. Kb1 {[%clk 0:01:05]} 21... Nd5 {[%clk 0:01:37.6]} 22. Bg2 {[%clk
0:00:43.2]} 22... Nxf4 {[%clk 0:01:24.9]} 23. Be4 {[%clk 0:00:43.7]} 23... Nd5
{[%clk 0:01:18.7]} 24. Bxh6 {[%clk 0:00:39.6]} 24... Rxh6 {[%clk 0:01:19.2]} 25.
Bxd5 {[%clk 0:00:40.8]} 25... cxd5 {[%clk 0:01:11.6]} 26. Rxd5 {[%clk
0:00:41.6]} 26... Rc8 {[%clk 0:00:54.7]} 27. a3 {[%clk 0:00:16.7]} 27... Rxh2
{[%clk 0:00:50.3]} 28. Rd4 {[%clk 0:00:16.4]} 28... Qc2+ {[%clk 0:00:31.3]} 29.
Qxc2 {[%clk 0:00:17]} 29... Rhxc2 {[%clk 0:00:33.2]} 30. Re1 {[%clk 0:00:16.3]}
30... R2c7 {[%clk 0:00:33.7]} 31. Rde4 {[%clk 0:00:16.6]} 31... Re8 {[%clk
0:00:34.6]} 32. Re6 {[%clk 0:00:17.6]} 32... Kc8 {[%clk 0:00:35]} 33. Ka2 {[%clk
0:00:18.5]} 33... Kd7 {[%clk 0:00:34.5]} 34. Kb3 {[%clk 0:00:18.1]} 34... Rc6
{[%clk 0:00:34.7]} 35. R6e4 {[%clk 0:00:18.7]} 35... e6 {[%clk 0:00:33.8]} 36.
Ka4 {[%clk 0:00:19.5]} 36... Rc5 {[%clk 0:00:32.1]} 37. b4 {[%clk 0:00:20]}
37... Rc3 {[%clk 0:00:28.3]} 38. b5 {[%clk 0:00:20.9]} 38... axb5+ {[%clk
0:00:26.1]} 39. Kb4 {[%clk 0:00:21.7]} 39... Rd3 {[%clk 0:00:24.3]} 40. Kxb5
{[%clk 0:00:21.1]} 40... Rxa3 {[%clk 0:00:23.1]} 41. Rd1+ {[%clk 0:00:22]} 41...
Kc7 {[%clk 0:00:21]} 42. Rc1+ {[%clk 0:00:21.4]} 42... Kb8 {[%clk 0:00:21.4]}
43. Rce1 {[%clk 0:00:19.8]} 43... Ra6 {[%clk 0:00:22.2]} 44. Rf1 {[%clk
0:00:20.9]} 44... Rd8 {[%clk 0:00:20]} 45. Rf7 {[%clk 0:00:21]} 45... Rd5+
{[%clk 0:00:21]} 46. Kb4 {[%clk 0:00:22.1]} 46... Rb6+ {[%clk 0:00:21.7]} 47.
Kc3 {[%clk 0:00:23.3]} 47... Rc6+ {[%clk 0:00:22.1]} 48. Kb4 {[%clk 0:00:23.7]}
48... Ka7 {[%clk 0:00:21.8]} 49. Re7 {[%clk 0:00:23.9]} 49... Rdd6 {[%clk
0:00:21.3]} 50. Re8 {[%clk 0:00:24.2]} 50... Kb6 {[%clk 0:00:20.9]} 51. Re7
{[%clk 0:00:25]} 51... Ka7 {[%clk 0:00:18.9]} 52. Re8 {[%clk 0:00:25.5]} 52...
Rb6+ {[%clk 0:00:20.4]} 53. Kc3 {[%clk 0:00:26.2]} 53... Rdc6+ {[%clk
0:00:20.8]} 54. Kd2 {[%clk 0:00:26.9]} 54... Ra6 {[%clk 0:00:20.1]} 55. Re5
{[%clk 0:00:26.5]} 55... Ra2+ {[%clk 0:00:19.6]} 56. Kd3 {[%clk 0:00:27.4]}
56... Ra3+ {[%clk 0:00:20.7]} 57. Kd2 {[%clk 0:00:28.2]} 57... Raa6 {[%clk
0:00:19.9]} 58. Kd3 {[%clk 0:00:29.2]} 58... Rd6+ {[%clk 0:00:20.3]} 59. Kc3
{[%clk 0:00:26.1]} 59... Rac6+ {[%clk 0:00:21]} 60. Kb3 {[%clk 0:00:27.1]} 60...
Rb6+ {[%clk 0:00:22.1]} 61. Kc3 {[%clk 0:00:27.6]} 61... Rbc6+ {[%clk
0:00:20.5]} 62. Kb3 {[%clk 0:00:28.5]} 62... b6 {[%clk 0:00:22.2]} 63. Kb4
{[%clk 0:00:25.2]} 63... Kb7 {[%clk 0:00:21.7]} 64. Re7+ {[%clk 0:00:22.3]}
64... Ka6 {[%clk 0:00:22.1]} 65. Re8 {[%clk 0:00:23.5]} 65... Rd4+ {[%clk
0:00:22.3]} 66. Kb3 {[%clk 0:00:24.6]} 66... Rd3+ {[%clk 0:00:23.8]} 67. Kb2
{[%clk 0:00:20.7]} 67... Rd2+ {[%clk 0:00:22.5]} 68. Kb3 {[%clk 0:00:21.6]}
68... Rd3+ {[%clk 0:00:17.9]} 69. Kb2 {[%clk 0:00:22.5]} 69... Rdd6 {[%clk
0:00:19.6]} 70. Kb3 {[%clk 0:00:23.1]} 70... Kb7 {[%clk 0:00:21.2]} 71. Kb4
{[%clk 0:00:17.3]} 71... Rd4+ {[%clk 0:00:21.1]} 72. Kb3 {[%clk 0:00:16.4]}
72... Rd3+ {[%clk 0:00:22.3]} 73. Kb4 {[%clk 0:00:16.8]} 73... Rd4+ {[%clk
0:00:17.2]} 74. Kb3 {[%clk 0:00:17.5]} 74... Rdd6 {[%clk 0:00:18.8]} 75. Re7+
{[%clk 0:00:18.2]} 75... Kc8 {[%clk 0:00:19.7]} 76. Kb4 {[%clk 0:00:18.4]} 76...
Kd8 {[%clk 0:00:19.8]} 77. Rh7 {[%clk 0:00:17.7]} 77... Rd5 {[%clk 0:00:18.5]}
78. Re1 {[%clk 0:00:18]} 78... Rd7 {[%clk 0:00:17.4]} 79. Rh8+ {[%clk
0:00:16.1]} 79... Kc7 {[%clk 0:00:16.7]} 80. Re8 {[%clk 0:00:17.1]} 80... Rd4+
{[%clk 0:00:16.3]} 81. Kb3 {[%clk 0:00:17.4]} 81... Kd7 {[%clk 0:00:17]} 82. Rg8
{[%clk 0:00:15.6]} 82... Rd3+ {[%clk 0:00:13.3]} 83. Kb2 {[%clk 0:00:15.7]}
83... Rcd6 {[%clk 0:00:10.4]} 84. Kc2 {[%clk 0:00:13.8]} 84... R3d5 {[%clk
0:00:09.6]} 85. Kb3 {[%clk 0:00:13.3]} 85... e5 {[%clk 0:00:09.4]} 86. Rg7+
{[%clk 0:00:13.9]} 86... Kc6 {[%clk 0:00:10.1]} 87. Re7 {[%clk 0:00:14.6]} 87...
Rb5+ {[%clk 0:00:09.5]} 88. Kc3 {[%clk 0:00:13]} 88... Rc5+ {[%clk 0:00:10.2]}
89. Kb3 {[%clk 0:00:13.6]} 89... Rd3+ {[%clk 0:00:11.3]} 90. Kb2 {[%clk
0:00:14.2]} 90... Rd2+ {[%clk 0:00:12.6]} 91. Kb3 {[%clk 0:00:15.1]} 91... Rd3+
{[%clk 0:00:14.3]} 92. Kb4 {[%clk 0:00:15.8]} 92... Rd4+ {[%clk 0:00:12.4]} 93.
Kb3 {[%clk 0:00:16.9]} 93... Rd3+ {[%clk 0:00:11.7]} 94. Kb2 {[%clk 0:00:18]}
94... Kd6 {[%clk 0:00:12.6]} 95. Re8 {[%clk 0:00:18.1]} 95... Rd2+ {[%clk
0:00:13.1]} 96. Kb3 {[%clk 0:00:18.7]} 96... Rd3+ {[%clk 0:00:14.7]} 97. Kb4
{[%clk 0:00:19.6]} 97... Rd4+ {[%clk 0:00:12.3]} 98. Kb3 {[%clk 0:00:20.7]}
98... b5 {[%clk 0:00:10.9]} 99. Rd8+ {[%clk 0:00:19.5]} 99... Kc6 {[%clk
0:00:07.5]} 100. Rc8+ {[%clk 0:00:20.2]} 100... Kb6 {[%clk 0:00:08]} 101. Rxc5
{[%clk 0:00:20.9]} 101... Kxc5 {[%clk 0:00:08.9]} 102. Rxe5+ {[%clk 0:00:21.9]}
102... Kb6 {[%clk 0:00:09.9]} 103. Re3 {[%clk 0:00:22.2]} 103... Ka5 {[%clk
0:00:10.2]} 104. Kb2 {[%clk 0:00:23.3]} 104... b4 {[%clk 0:00:10.7]} 105. Kb1
{[%clk 0:00:24]} 105... Ka4 {[%clk 0:00:12.1]} 106. Rf3 {[%clk 0:00:25]} 106...
Rd2 {[%clk 0:00:13.2]} 107. Rg3 {[%clk 0:00:25.2]} 107... Rf2 {[%clk 0:00:14.6]}
108. Rh3 {[%clk 0:00:26]} 108... b3 {[%clk 0:00:16.3]} 109. Rh8 {[%clk
0:00:26.4]} 109... Rf1+ {[%clk 0:00:17.4]} 110. Kb2 {[%clk 0:00:26.8]} 110...
Rf2+ {[%clk 0:00:19.3]} 111. Kb1 {[%clk 0:00:27.8]} 111... Rf1+ {[%clk
0:00:18.5]} 112. Kb2 {[%clk 0:00:28.2]} 112... Rf2+ {[%clk 0:00:20.4]} 113. Kb1
{[%clk 0:00:28.8]} 113... Rf1+ {[%clk 0:00:21.8]} 114. Kb2 {[%clk 0:00:29.5]}
114... Rf2+ {[%clk 0:00:23.7]} 1/2-1/2

[Event "*** Titled Tuesday 3|2 Blitz"]
[Site "Chess.com"]
[Date "2016.07.05"]
[Round "7"]
[White "PowerThinking2650"]
[Black "annakantane"]
[Result "1-0"]
[WhiteElo "2162"]
[BlackElo "2233"]
[TimeControl "180+2"]
[EndTime "12:24:19 PDT"]
[Termination "PowerThinking2650 won by resignation"]

1. e4 {[%clk 0:03:01.9]} 1... d5 {[%clk 0:02:56.5]} 2. exd5 {[%clk 0:03:01.5]}
2... Qxd5 {[%clk 0:02:58.4]} 3. Nf3 {[%clk 0:03:02.1]} 3... e5 {[%clk
0:02:52.6]} 4. Nc3 {[%clk 0:03:01.9]} 4... Qe6 {[%clk 0:02:44.7]} 5. Bb5+ {[%clk
0:02:57]} 5... Bd7 {[%clk 0:02:38.7]} 6. O-O {[%clk 0:02:53.6]} 6... Bd6 {[%clk
0:02:35.9]} 7. Re1 {[%clk 0:02:48.9]} 7... c6 {[%clk 0:02:35]} 8. Ba4 {[%clk
0:02:48.4]} 8... Ne7 {[%clk 0:02:31.2]} 9. d4 {[%clk 0:02:44.7]} 9... f6 {[%clk
0:02:24.5]} 10. Bb3 {[%clk 0:02:38.7]} 10... Qf5 {[%clk 0:02:10.1]} 11. dxe5
{[%clk 0:02:27.6]} 11... Bxe5 {[%clk 0:02:12]} 12. Nxe5 {[%clk 0:02:25.7]} 12...
fxe5 {[%clk 0:02:13.9]} 13. Ne4 {[%clk 0:02:26.2]} 13... Qg6 {[%clk 0:02:00.5]}
14. Nd6+ {[%clk 0:02:23.5]} 14... Kf8 {[%clk 0:01:57.2]} 15. Nf7 {[%clk
0:02:18.2]} 1-0

[Event "*** Titled Tuesday 3|2 Blitz"]
[Site "Chess.com"]
[Date "2016.07.05"]
[Round "7"]
[White "bilelou"]
[Black "Schemato"]
[Result "1-0"]
[WhiteElo "2281"]
[BlackElo "2209"]
[TimeControl "180+2"]
[EndTime "12:24:56 PDT"]
[Termination "bilelou won by resignation"]

1. d4 {[%clk 0:03:01.9]} 1... e6 {[%clk 0:03:01.3]} 2. c4 {[%clk 0:03:02.7]}
2... f5 {[%clk 0:03:02.4]} 3. g3 {[%clk 0:03:03.3]} 3... Nf6 {[%clk 0:03:03]} 4.
Nf3 {[%clk 0:03:04.6]} 4... c6 {[%clk 0:03:04.7]} 5. Bg2 {[%clk 0:03:06.2]} 5...
d5 {[%clk 0:03:06.4]} 6. O-O {[%clk 0:03:07.9]} 6... Bd6 {[%clk 0:03:08]} 7. b3
{[%clk 0:03:09.2]} 7... Qe7 {[%clk 0:03:08.4]} 8. a4 {[%clk 0:03:10.7]} 8... a5
{[%clk 0:03:03.5]} 9. c5 {[%clk 0:03:11.2]} 9... Bc7 {[%clk 0:03:03.8]} 10. Bf4
{[%clk 0:03:08.1]} 10... Bxf4 {[%clk 0:03:02.5]} 11. gxf4 {[%clk 0:03:03.7]}
11... O-O {[%clk 0:03:03]} 12. e3 {[%clk 0:03:02.7]} 12... Kh8 {[%clk
0:02:59.4]} 13. Nbd2 {[%clk 0:03:04.1]} 13... Rg8 {[%clk 0:02:59.9]} 14. Rb1
{[%clk 0:03:03.3]} 14... Bd7 {[%clk 0:02:59.7]} 15. b4 {[%clk 0:03:03.1]} 15...
axb4 {[%clk 0:02:58.8]} 16. Rxb4 {[%clk 0:03:01]} 16... Be8 {[%clk 0:02:58.5]}
17. Qb3 {[%clk 0:02:59.3]} 17... Ra7 {[%clk 0:02:59]} 18. Rb1 {[%clk 0:02:59.9]}
18... Ne4 {[%clk 0:02:29.2]} 19. Rxb7 {[%clk 0:02:57.5]} 19... Rxb7 {[%clk
0:02:29.2]} 20. Qxb7 {[%clk 0:02:58.3]} 20... Qxb7 {[%clk 0:02:28.7]} 21. Rxb7
{[%clk 0:02:57.8]} 21... Bh5 {[%clk 0:02:30.2]} 22. Nxe4 {[%clk 0:02:52.6]}
22... fxe4 {[%clk 0:02:29.8]} 23. Ng5 {[%clk 0:02:45.2]} 23... h6 {[%clk
0:02:13.4]} 24. Nxe6 {[%clk 0:02:45]} 24... Na6 {[%clk 0:02:12.7]} 25. Rb6
{[%clk 0:02:41.8]} 25... Ra8 {[%clk 0:02:10.8]} 26. a5 {[%clk 0:02:41.4]} 26...
Be2 {[%clk 0:02:08.8]} 27. Bf1 {[%clk 0:02:42]} 27... Bxf1 {[%clk 0:02:07.9]}
28. Kxf1 {[%clk 0:02:43]} 28... Kg8 {[%clk 0:02:07.8]} 29. Rxc6 {[%clk 0:02:41]}
29... Nb4 {[%clk 0:02:08]} 30. Rb6 {[%clk 0:02:40.4]} 30... Nd3 {[%clk
0:02:06.5]} 31. a6 {[%clk 0:02:37.6]} 1-0

[Event "*** Titled Tuesday 3|2 Blitz"]
[Site "Chess.com"]
[Date "2016.07.05"]
[Round "7"]
[White "Frolyanov_D"]
[Black "tigra"]
[Result "1-0"]
[WhiteElo "2468"]
[BlackElo "2452"]
[TimeControl "180+2"]
[EndTime "12:25:25 PDT"]
[Termination "Frolyanov_D won by resignation"]

1. e4 {[%clk 0:03:01.9]} 1... c5 {[%clk 0:03:01.9]} 2. Nf3 {[%clk 0:03:02.3]}
2... g6 {[%clk 0:03:03.4]} 3. d4 {[%clk 0:03:01.8]} 3... cxd4 {[%clk 0:03:05.3]}
4. Nxd4 {[%clk 0:03:03.7]} 4... Nc6 {[%clk 0:03:04.7]} 5. Nc3 {[%clk 0:03:03.6]}
5... Bg7 {[%clk 0:03:05.2]} 6. Be3 {[%clk 0:03:03.9]} 6... Nf6 {[%clk
0:03:06.7]} 7. Bc4 {[%clk 0:03:04.4]} 7... O-O {[%clk 0:03:04]} 8. Bb3 {[%clk
0:03:05.3]} 8... d6 {[%clk 0:03:05.2]} 9. f3 {[%clk 0:03:02.2]} 9... Bd7 {[%clk
0:03:05.4]} 10. Qd2 {[%clk 0:03:02]} 10... Nxd4 {[%clk 0:03:05.2]} 11. Bxd4
{[%clk 0:03:03.1]} 11... b5 {[%clk 0:03:06.4]} 12. a4 {[%clk 0:03:02.4]} 12...
b4 {[%clk 0:03:06.7]} 13. Nd5 {[%clk 0:03:02.1]} 13... Nxd5 {[%clk 0:03:06.8]}
14. Bxg7 {[%clk 0:03:00]} 14... Kxg7 {[%clk 0:03:07.7]} 15. exd5 {[%clk
0:03:01.1]} 15... Qa5 {[%clk 0:03:07.2]} 16. h4 {[%clk 0:02:57.9]} 16... e5
{[%clk 0:03:05.9]} 17. dxe6 {[%clk 0:02:54]} 17... Bxe6 {[%clk 0:03:06.6]} 18.
O-O-O {[%clk 0:02:54.7]} 18... Bxb3 {[%clk 0:03:06.1]} 19. cxb3 {[%clk
0:02:55.3]} 19... Qf5 {[%clk 0:03:06.7]} 20. Qd3 {[%clk 0:02:51.2]} 20... Rac8+
{[%clk 0:03:06.7]} 21. Kb1 {[%clk 0:02:51.7]} 21... Qxd3+ {[%clk 0:03:01]} 22.
Rxd3 {[%clk 0:02:53.6]} 22... Rfe8 {[%clk 0:03:02.9]} 23. Rhd1 {[%clk
0:02:41.3]} 23... Re2 {[%clk 0:03:03.1]} 24. R3d2 {[%clk 0:02:41.7]} 24... Re3
{[%clk 0:02:55.7]} 25. Rxd6 {[%clk 0:02:31.7]} 25... f5 {[%clk 0:02:37.2]} 26.
Rd7+ {[%clk 0:02:30.8]} 26... Kf6 {[%clk 0:01:57.9]} 27. Rxa7 {[%clk 0:02:19.3]}
27... Ke5 {[%clk 0:01:56.6]} 28. Re7+ {[%clk 0:02:13.5]} 28... Kf4 {[%clk
0:01:57.6]} 29. Rd4+ {[%clk 0:02:13.2]} 1-0

[Event "*** Titled Tuesday 3|2 Blitz"]
[Site "Chess.com"]
[Date "2016.07.05"]
[Round "7"]
[White "Masterbeaterr"]
[Black "Aragon"]
[Result "0-1"]
[WhiteElo "2251"]
[BlackElo "2103"]
[TimeControl "180+2"]
[EndTime "12:26:22 PDT"]
[Termination "Aragon won by resignation"]

1. e4 {[%clk 0:03:01.9]} 1... d5 {[%clk 0:02:58.7]} 2. exd5 {[%clk 0:03:01.6]}
2... Qxd5 {[%clk 0:03:00.6]} 3. Nc3 {[%clk 0:03:02.9]} 3... Qd6 {[%clk
0:03:01.9]} 4. d4 {[%clk 0:03:03.8]} 4... Nf6 {[%clk 0:03:03.5]} 5. Nf3 {[%clk
0:03:05.3]} 5... c6 {[%clk 0:03:04.9]} 6. Ne5 {[%clk 0:03:06.5]} 6... Nbd7
{[%clk 0:03:05.1]} 7. f4 {[%clk 0:03:08.1]} 7... g6 {[%clk 0:03:04.6]} 8. g4
{[%clk 0:03:08.7]} 8... Bg7 {[%clk 0:03:04.2]} 9. g5 {[%clk 0:03:10]} 9... Nd5
{[%clk 0:03:03.2]} 10. Ne4 {[%clk 0:03:11.6]} 10... Qc7 {[%clk 0:03:04]} 11. c4
{[%clk 0:03:08.1]} 11... N5b6 {[%clk 0:03:01.8]} 12. Be3 {[%clk 0:02:57.9]}
12... Nxe5 {[%clk 0:02:51.2]} 13. fxe5 {[%clk 0:02:59.8]} 13... Bf5 {[%clk
0:02:50.3]} 14. Ng3 {[%clk 0:02:54.5]} 14... c5 {[%clk 0:02:39.7]} 15. Nxf5
{[%clk 0:02:49.1]} 15... gxf5 {[%clk 0:02:41.6]} 16. e6 {[%clk 0:02:39.5]} 16...
fxe6 {[%clk 0:02:36.7]} 17. Qh5+ {[%clk 0:02:40.2]} 17... Kf8 {[%clk 0:02:30.4]}
18. O-O-O {[%clk 0:02:40.5]} 18... cxd4 {[%clk 0:02:24.2]} 19. Bd2 {[%clk
0:02:33.4]} 19... Nxc4 {[%clk 0:02:18.5]} 20. Kb1 {[%clk 0:02:31.4]} 20... d3
{[%clk 0:01:41.6]} 21. Bxd3 {[%clk 0:01:50.2]} 21... Nxb2 {[%clk 0:01:35.4]} 22.
Rc1 {[%clk 0:01:50]} 22... Qb6 {[%clk 0:01:28]} 23. Kc2 {[%clk 0:01:33]} 23...
Rc8+ {[%clk 0:01:09]} 0-1

[Event "*** Titled Tuesday 3|2 Blitz"]
[Site "Chess.com"]
[Date "2016.07.05"]
[Round "7"]
[White "Quiet_Desperation"]
[Black "thymathgeek"]
[Result "1-0"]
[WhiteElo "2181"]
[BlackElo "2067"]
[TimeControl "180+2"]
[EndTime "12:26:33 PDT"]
[Termination "Quiet_Desperation won by resignation"]

1. e4 {[%clk 0:03:01.9]} 1... e5 {[%clk 0:03:00.7]} 2. Nf3 {[%clk 0:03:03.2]}
2... Nc6 {[%clk 0:03:02.3]} 3. Bb5 {[%clk 0:03:04.7]} 3... a6 {[%clk 0:03:03.5]}
4. Ba4 {[%clk 0:03:06]} 4... Nf6 {[%clk 0:03:04.9]} 5. d3 {[%clk 0:03:07.4]}
5... Be7 {[%clk 0:03:02.4]} 6. c3 {[%clk 0:03:08.8]} 6... d6 {[%clk 0:03:02.7]}
7. O-O {[%clk 0:03:10.2]} 7... b5 {[%clk 0:03:03.6]} 8. Bc2 {[%clk 0:03:10.8]}
8... O-O {[%clk 0:03:04.4]} 9. h3 {[%clk 0:03:12.5]} 9... Re8 {[%clk 0:02:59.8]}
10. Qe2 {[%clk 0:03:14]} 10... Bf8 {[%clk 0:02:59.8]} 11. Rd1 {[%clk 0:03:15.5]}
11... Bb7 {[%clk 0:02:45.6]} 12. Nbd2 {[%clk 0:03:16.9]} 12... Ne7 {[%clk
0:02:39.6]} 13. Nf1 {[%clk 0:03:18.1]} 13... c5 {[%clk 0:02:40.8]} 14. Ng3
{[%clk 0:03:18.7]} 14... g6 {[%clk 0:02:35.4]} 15. Bg5 {[%clk 0:03:18.5]} 15...
Bg7 {[%clk 0:02:36.6]} 16. Qd2 {[%clk 0:03:10.6]} 16... Qc7 {[%clk 0:02:13.5]}
17. Bh6 {[%clk 0:03:11.5]} 17... d5 {[%clk 0:02:07.7]} 18. Qg5 {[%clk
0:03:07.8]} 18... c4 {[%clk 0:01:55.3]} 19. Bxg7 {[%clk 0:03:05.7]} 19... Kxg7
{[%clk 0:01:56.3]} 20. Nh4 {[%clk 0:03:02.7]} 20... Qc6 {[%clk 0:01:13.2]} 21.
Nhf5+ {[%clk 0:03:00.8]} 21... Nxf5 {[%clk 0:01:14.4]} 22. Nxf5+ {[%clk
0:03:02.2]} 22... Kh8 {[%clk 0:01:08.2]} 23. Nh6 {[%clk 0:02:59.4]} 23... Re7
{[%clk 0:01:04.4]} 24. dxc4 {[%clk 0:02:58.5]} 24... dxc4 {[%clk 0:00:40.5]} 25.
Rd2 {[%clk 0:02:57.7]} 25... Rae8 {[%clk 0:00:37.6]} 26. Rad1 {[%clk 0:02:57.1]}
26... Qe6 {[%clk 0:00:26.7]} 27. Rd6 {[%clk 0:02:55.4]} 27... Nxe4 {[%clk
0:00:15.3]} 28. Bxe4 {[%clk 0:02:53.8]} 28... f6 {[%clk 0:00:14]} 29. Rxe6
{[%clk 0:02:53.3]} 29... fxg5 {[%clk 0:00:14.4]} 30. Rxe7 {[%clk 0:02:50.4]}
30... Rxe7 {[%clk 0:00:15.6]} 31. Bxb7 {[%clk 0:02:45.5]} 31... Rxb7 {[%clk
0:00:16.8]} 32. Ng4 {[%clk 0:02:46.6]} 32... Kg7 {[%clk 0:00:17.1]} 33. Nxe5
{[%clk 0:02:47.6]} 1-0

[Event "*** Titled Tuesday 3|2 Blitz"]
[Site "Chess.com"]
[Date "2016.07.05"]
[Round "7"]
[White "Aguiar94"]
[Black "Tonychess32"]
[Result "0-1"]
[WhiteElo "2461"]
[BlackElo "2423"]
[TimeControl "180+2"]
[EndTime "12:27:16 PDT"]
[Termination "Tonychess32 won by resignation"]

1. e4 {[%clk 0:03:01.9]} 1... e6 {[%clk 0:02:58.5]} 2. d4 {[%clk 0:03:02.3]}
2... d5 {[%clk 0:02:59.8]} 3. Nd2 {[%clk 0:03:03.7]} 3... Ne7 {[%clk 0:03:00.5]}
4. e5 {[%clk 0:03:00]} 4... c5 {[%clk 0:03:01.5]} 5. c3 {[%clk 0:03:01.3]} 5...
Nbc6 {[%clk 0:03:02.1]} 6. Ndf3 {[%clk 0:03:02.8]} 6... cxd4 {[%clk 0:03:00.8]}
7. cxd4 {[%clk 0:03:02.6]} 7... Nf5 {[%clk 0:03:02.2]} 8. g4 {[%clk 0:02:38.5]}
8... Nh4 {[%clk 0:03:00.2]} 9. a3 {[%clk 0:02:34.7]} 9... h6 {[%clk 0:03:00.9]}
10. Be3 {[%clk 0:02:32.8]} 10... Bd7 {[%clk 0:02:59.3]} 11. Bd3 {[%clk 0:02:27]}
11... Na5 {[%clk 0:03:00.3]} 12. Rc1 {[%clk 0:02:22.3]} 12... Ng2+ {[%clk
0:02:57.3]} 13. Kf1 {[%clk 0:02:22.1]} 13... Nxe3+ {[%clk 0:02:58.5]} 14. fxe3
{[%clk 0:02:24]} 14... Qb6 {[%clk 0:02:56.9]} 15. Qe2 {[%clk 0:01:23.4]} 15...
Be7 {[%clk 0:02:57.7]} 16. Kg2 {[%clk 0:01:17.8]} 16... O-O {[%clk 0:02:49.8]}
17. Nh3 {[%clk 0:01:14]} 17... Nc4 {[%clk 0:02:51.1]} 18. Bxc4 {[%clk
0:01:00.1]} 18... dxc4 {[%clk 0:02:51.6]} 19. Nf4 {[%clk 0:00:44.2]} 19... Bc6
{[%clk 0:02:50.1]} 20. e4 {[%clk 0:00:42.6]} 20... Rad8 {[%clk 0:02:50.3]} 21.
Rhd1 {[%clk 0:00:42]} 21... Bg5 {[%clk 0:02:44.3]} 22. Qe3 {[%clk 0:00:21.2]}
22... Qxb2+ {[%clk 0:02:42.4]} 23. Kg3 {[%clk 0:00:22]} 23... Qb3 {[%clk
0:02:40.5]} 24. Qxb3 {[%clk 0:00:12.8]} 24... cxb3 {[%clk 0:02:42.4]} 25. Re1
{[%clk 0:00:06.6]} 25... a5 {[%clk 0:02:40.4]} 26. Rc3 {[%clk 0:00:06]} 26... a4
{[%clk 0:02:40.8]} 27. Nd3 {[%clk 0:00:06]} 27... Be7 {[%clk 0:02:35.9]} 28. Nc5
{[%clk 0:00:02.4]} 28... Bxc5 {[%clk 0:02:30.3]} 29. Rxc5 {[%clk 0:00:02.8]}
29... g5 {[%clk 0:02:31.6]} 30. h4 {[%clk 0:00:02.3]} 30... gxh4+ {[%clk
0:02:29.9]} 31. Kxh4 {[%clk 0:00:04.2]} 31... b2 {[%clk 0:02:24.5]} 32. Rb1
{[%clk 0:00:04.6]} 32... Bxe4 {[%clk 0:02:24.3]} 33. Rxb2 {[%clk 0:00:06.2]}
33... Bxf3 {[%clk 0:02:23.6]} 0-1

[Event "*** Titled Tuesday 3|2 Blitz"]
[Site "Chess.com"]
[Date "2016.07.05"]
[Round "7"]
[White "Saitama_Hero"]
[Black "Hieronymus00"]
[Result "1-0"]
[WhiteElo "2107"]
[BlackElo "2140"]
[TimeControl "180+2"]
[EndTime "12:27:23 PDT"]
[Termination "Saitama_Hero won by resignation"]

1. d4 {[%clk 0:03:01.9]} 1... Nf6 {[%clk 0:03:00.8]} 2. c4 {[%clk 0:03:00.1]}
2... g6 {[%clk 0:03:00.8]} 3. Nc3 {[%clk 0:02:58.8]} 3... Bg7 {[%clk 0:03:02.2]}
4. e4 {[%clk 0:02:58.8]} 4... d6 {[%clk 0:03:03.5]} 5. Nf3 {[%clk 0:02:56.9]}
5... O-O {[%clk 0:03:04.3]} 6. Be2 {[%clk 0:02:56.7]} 6... Nbd7 {[%clk
0:03:04.9]} 7. O-O {[%clk 0:02:56.4]} 7... e5 {[%clk 0:03:05.8]} 8. Re1 {[%clk
0:02:52.5]} 8... Re8 {[%clk 0:02:52.1]} 9. Bf1 {[%clk 0:02:52.3]} 9... exd4
{[%clk 0:02:50.1]} 10. Nxd4 {[%clk 0:02:51.8]} 10... Nc5 {[%clk 0:02:51.3]} 11.
f3 {[%clk 0:02:51.7]} 11... a5 {[%clk 0:02:52.4]} 12. b3 {[%clk 0:02:50.9]}
12... c6 {[%clk 0:02:46.9]} 13. Bf4 {[%clk 0:02:47.1]} 13... Nh5 {[%clk
0:02:35]} 14. Be3 {[%clk 0:02:47]} 14... Qf6 {[%clk 0:02:26]} 15. Qd2 {[%clk
0:02:42.9]} 15... Ne6 {[%clk 0:02:19.7]} 16. Nxe6 {[%clk 0:02:35.6]} 16... Bxe6
{[%clk 0:02:12.4]} 17. Ne2 {[%clk 0:02:30.7]} 17... c5 {[%clk 0:02:08.2]} 18.
Rad1 {[%clk 0:02:19.3]} 18... Bf8 {[%clk 0:01:48.7]} 19. Nc3 {[%clk 0:02:13.8]}
19... Ra6 {[%clk 0:01:17.6]} 20. Nb5 {[%clk 0:02:10.1]} 20... Rc8 {[%clk
0:01:07]} 21. Be2 {[%clk 0:02:04.5]} 21... Qg7 {[%clk 0:00:48.6]} 22. a4 {[%clk
0:01:56.3]} 22... Be7 {[%clk 0:00:23.5]} 23. Kh1 {[%clk 0:01:53.8]} 23... Qf6
{[%clk 0:00:18.3]} 24. g4 {[%clk 0:01:53.5]} 24... Ng7 {[%clk 0:00:18.2]} 25. g5
{[%clk 0:01:50.3]} 25... Qe5 {[%clk 0:00:15.8]} 26. Bf4 {[%clk 0:01:50.6]} 26...
Bxg5 {[%clk 0:00:11.4]} 27. Bxg5 {[%clk 0:01:49.8]} 1-0